[Event "Late-Titled-Tuesday-Blitz-March-12-2024"]
[Site "Chess.com"]
[Date "2024.03.12"]
[Round "9"]
[White "Vladimir_Zakhartsov"]
[Black "Rud_2008"]
[Result "1/2-1/2"]
[WhiteElo "2932"]
[BlackElo "2790"]
[TimeControl "180+1"]
[EndTime "15:42:08 PDT"]
[Termination "Game drawn by repetition"]

1. d4 {[%clk 0:02:56.5]} 1... Nf6 {[%clk 0:02:59.7]} 2. c4 {[%clk 0:02:52]} 2...
e6 {[%clk 0:02:59.1]} 3. Nf3 {[%clk 0:02:48.7]} 3... d5 {[%clk 0:02:59.2]} 4. g3
{[%clk 0:02:48.5]} 4... Be7 {[%clk 0:02:59.2]} 5. Bg2 {[%clk 0:02:48.2]} 5...
O-O {[%clk 0:02:59]} 6. Nc3 {[%clk 0:02:48.3]} 6... dxc4 {[%clk 0:02:58.6]} 7.
Ne5 {[%clk 0:02:48.2]} 7... c5 {[%clk 0:02:59.2]} 8. dxc5 {[%clk 0:02:48]} 8...
Qxd1+ {[%clk 0:03:00.1]} 9. Nxd1 {[%clk 0:02:48.1]} 9... Bxc5 {[%clk 0:03:01]}
10. Ne3 {[%clk 0:02:48.2]} 10... Bb4+ {[%clk 0:02:46.3]} 11. Bd2 {[%clk
0:02:46.1]} 11... Bxd2+ {[%clk 0:02:45.5]} 12. Kxd2 {[%clk 0:02:47]} 12... Rd8+
{[%clk 0:02:45]} 13. Kc2 {[%clk 0:02:39.7]} 13... Nc6 {[%clk 0:02:38.9]} 14.
Nxc6 {[%clk 0:02:21.1]} 14... bxc6 {[%clk 0:02:39.8]} 15. Bxc6 {[%clk
0:02:20.3]} 15... Rb8 {[%clk 0:02:37.4]} 16. Rhd1 {[%clk 0:02:19]} 16... Ba6
{[%clk 0:02:36.2]} 17. Kc3 {[%clk 0:02:13]} 17... Kf8 {[%clk 0:02:31.6]} 18.
Rxd8+ {[%clk 0:01:59]} 18... Rxd8 {[%clk 0:02:30.3]} 19. Rd1 {[%clk 0:01:59.6]}
19... Rc8 {[%clk 0:02:28.5]} 20. Bf3 {[%clk 0:01:59.1]} 20... Ke7 {[%clk
0:02:26.4]} 21. a4 {[%clk 0:01:42.7]} 21... Nd7 {[%clk 0:02:18.8]} 22. Kb4
{[%clk 0:01:35.1]} 22... Rb8+ {[%clk 0:02:11.5]} 23. Ka5 {[%clk 0:01:33.6]}
23... Nc5 {[%clk 0:02:11.3]} 24. Bc6 {[%clk 0:01:27.3]} 24... Bc8 {[%clk
0:02:04.7]} 25. Bb5 {[%clk 0:01:22.9]} 25... a6 {[%clk 0:02:04.4]} 26. Bxc4
{[%clk 0:01:16.1]} 26... Rxb2 {[%clk 0:02:03.5]} 27. Rc1 {[%clk 0:01:02.1]}
27... Bd7 {[%clk 0:01:33.6]} 28. Rc2 {[%clk 0:00:54.5]} 28... Rb8 {[%clk
0:01:29.8]} 29. Ra2 {[%clk 0:00:48.4]} 29... Kd6 {[%clk 0:01:21.2]} 30. Nc2
{[%clk 0:00:47.1]} 30... Bc8 {[%clk 0:01:06.6]} 31. Nb4 {[%clk 0:00:32.2]} 31...
Nb7+ {[%clk 0:00:53]} 32. Kb6 {[%clk 0:00:29.2]} 32... Nd8+ {[%clk 0:00:49.9]}
33. Ka5 {[%clk 0:00:25.7]} 33... Nb7+ {[%clk 0:00:19.7]} 34. Kb6 {[%clk
0:00:26.2]} 34... Nc5+ {[%clk 0:00:18.5]} 35. Ka5 {[%clk 0:00:25.6]} 35... Nb7+
{[%clk 0:00:08.5]} 1/2-1/2

[Event "Late-Titled-Tuesday-Blitz-March-12-2024"]
[Site "Chess.com"]
[Date "2024.03.12"]
[Round "9"]
[White "crazyluzhinTh3"]
[Black "buenamor1972"]
[Result "1-0"]
[WhiteElo "2577"]
[BlackElo "2384"]
[TimeControl "180+1"]
[EndTime "15:42:09 PDT"]
[Termination "crazyluzhinTh3 won by resignation"]

1. e4 {[%clk 0:02:54.7]} 1... c5 {[%clk 0:02:53.2]} 2. Nf3 {[%clk 0:02:54.8]}
2... e6 {[%clk 0:02:52.1]} 3. g3 {[%clk 0:02:53.6]} 3... Nc6 {[%clk 0:02:49.6]}
4. Bg2 {[%clk 0:02:53.9]} 4... g6 {[%clk 0:02:48.6]} 5. O-O {[%clk 0:02:53.4]}
5... Bg7 {[%clk 0:02:49.1]} 6. c3 {[%clk 0:02:53.6]} 6... Nge7 {[%clk
0:02:49.6]} 7. d4 {[%clk 0:02:53.9]} 7... cxd4 {[%clk 0:02:48.7]} 8. Nxd4 {[%clk
0:02:54.6]} 8... a6 {[%clk 0:02:47]} 9. Be3 {[%clk 0:02:52.5]} 9... O-O {[%clk
0:02:45.7]} 10. Nd2 {[%clk 0:02:51.5]} 10... Qc7 {[%clk 0:02:44.9]} 11. Qe2
{[%clk 0:02:50.4]} 11... d6 {[%clk 0:02:45.1]} 12. Rad1 {[%clk 0:02:49.3]} 12...
Bd7 {[%clk 0:02:44.9]} 13. h4 {[%clk 0:02:49.6]} 13... b5 {[%clk 0:02:39.8]} 14.
h5 {[%clk 0:02:47.9]} 14... Nxd4 {[%clk 0:02:30.2]} 15. cxd4 {[%clk 0:02:40]}
15... Rac8 {[%clk 0:02:25.5]} 16. Nb3 {[%clk 0:02:30.1]} 16... Qb8 {[%clk
0:02:10.9]} 17. Bg5 {[%clk 0:02:21.8]} 17... f6 {[%clk 0:02:07.4]} 18. Be3
{[%clk 0:02:20.7]} 18... b4 {[%clk 0:01:57.3]} 19. Rfe1 {[%clk 0:02:20.2]} 19...
Bb5 {[%clk 0:01:57]} 20. Qd2 {[%clk 0:02:20.1]} 20... Ba4 {[%clk 0:01:51.5]} 21.
Bh3 {[%clk 0:02:13.6]} 21... Bd7 {[%clk 0:01:46.6]} 22. d5 {[%clk 0:02:07.3]}
22... f5 {[%clk 0:01:28.7]} 23. dxe6 {[%clk 0:01:57.5]} 23... Bxe6 {[%clk
0:01:28.6]} 24. Nd4 {[%clk 0:01:58.2]} 24... Bd7 {[%clk 0:01:19.3]} 25. hxg6
{[%clk 0:01:55.4]} 25... hxg6 {[%clk 0:01:18.8]} 26. Bh6 {[%clk 0:01:33.9]}
26... Rce8 {[%clk 0:01:18.1]} 27. Bxg7 {[%clk 0:01:27.7]} 27... Kxg7 {[%clk
0:01:17.5]} 28. Nf3 {[%clk 0:01:26.4]} 28... Nc8 {[%clk 0:01:06.5]} 29. Qd4+
{[%clk 0:01:23.1]} 29... Kg8 {[%clk 0:01:06.8]} 30. Nh4 {[%clk 0:01:17.6]} 30...
Kf7 {[%clk 0:00:30]} 31. exf5 {[%clk 0:01:12.5]} 31... g5 {[%clk 0:00:30.1]} 32.
Nf3 {[%clk 0:01:04.7]} 32... Rg8 {[%clk 0:00:24.8]} 33. Qd5+ {[%clk 0:00:59.4]}
33... Kf8 {[%clk 0:00:24.4]} 34. Bg4 {[%clk 0:00:48.8]} 34... Qb5 {[%clk
0:00:23]} 35. Qd4 {[%clk 0:00:39.8]} 35... Rg7 {[%clk 0:00:20]} 36. f6 {[%clk
0:00:33.1]} 36... Rf7 {[%clk 0:00:17.3]} 37. Bxd7 {[%clk 0:00:28.7]} 37... Qxd7
{[%clk 0:00:16.6]} 38. Nxg5 {[%clk 0:00:29.1]} 38... Rxe1+ {[%clk 0:00:15.1]}
39. Rxe1 {[%clk 0:00:29.1]} 1-0

[Event "Late-Titled-Tuesday-Blitz-March-12-2024"]
[Site "Chess.com"]
[Date "2024.03.12"]
[Round "9"]
[White "Speed-O-Sonic"]
[Black "simaopdias"]
[Result "1-0"]
[WhiteElo "2458"]
[BlackElo "2270"]
[TimeControl "180+1"]
[EndTime "15:42:17 PDT"]
[Termination "Speed-O-Sonic won by resignation"]

1. e4 {[%clk 0:02:55.2]} 1... c5 {[%clk 0:02:59.8]} 2. Nc3 {[%clk 0:02:54.9]}
2... g6 {[%clk 0:03:00.4]} 3. d4 {[%clk 0:02:54.4]} 3... cxd4 {[%clk 0:03:00.6]}
4. Qxd4 {[%clk 0:02:55.3]} 4... Nf6 {[%clk 0:03:01.1]} 5. Be3 {[%clk 0:02:54.9]}
5... Nc6 {[%clk 0:03:01.3]} 6. Qd2 {[%clk 0:02:53.8]} 6... Bg7 {[%clk
0:03:01.2]} 7. f3 {[%clk 0:02:53.8]} 7... O-O {[%clk 0:03:01]} 8. O-O-O {[%clk
0:02:53.9]} 8... d6 {[%clk 0:03:01.2]} 9. Nge2 {[%clk 0:02:54.3]} 9... Bd7
{[%clk 0:03:00.1]} 10. Kb1 {[%clk 0:02:52.6]} 10... a5 {[%clk 0:02:59.3]} 11. g4
{[%clk 0:02:51.7]} 11... Ne5 {[%clk 0:02:56.8]} 12. Nd4 {[%clk 0:02:49.9]} 12...
Rc8 {[%clk 0:02:48.1]} 13. g5 {[%clk 0:02:48.3]} 13... Ne8 {[%clk 0:02:44.5]}
14. f4 {[%clk 0:02:43.8]} 14... Nc4 {[%clk 0:02:43.9]} 15. Bxc4 {[%clk
0:02:44.4]} 15... Rxc4 {[%clk 0:02:44.7]} 16. h4 {[%clk 0:02:35.3]} 16... b5
{[%clk 0:02:30.5]} 17. h5 {[%clk 0:02:33.4]} 17... b4 {[%clk 0:02:29]} 18. hxg6
{[%clk 0:01:37.5]} 18... fxg6 {[%clk 0:02:27.4]} 19. Qh2 {[%clk 0:01:30.1]}
19... bxc3 {[%clk 0:02:22.6]} 20. Qxh7+ {[%clk 0:01:29.9]} 20... Kf7 {[%clk
0:02:23.1]} 21. f5 {[%clk 0:01:25.4]} 21... Rh8 {[%clk 0:02:04.8]} 22. Qxg6+
{[%clk 0:00:39.9]} 22... Kg8 {[%clk 0:01:54]} 23. Rxh8+ {[%clk 0:00:37.6]} 23...
Kxh8 {[%clk 0:01:54.3]} 24. Qf7 {[%clk 0:00:27.8]} 24... Bxf5 {[%clk 0:00:23.6]}
25. exf5 {[%clk 0:00:25.8]} 25... Qa8 {[%clk 0:00:16.1]} 26. Qxc4 {[%clk
0:00:16.7]} 26... cxb2 {[%clk 0:00:10.9]} 27. Qc6 {[%clk 0:00:14.7]} 27... Qb8
{[%clk 0:00:05.1]} 28. Rh1+ {[%clk 0:00:13.4]} 28... Kg8 {[%clk 0:00:05.3]} 29.
Qd5+ {[%clk 0:00:13.5]} 29... Kf8 {[%clk 0:00:05.1]} 30. Ne6+ {[%clk 0:00:13.7]}
1-0

[Event "Late-Titled-Tuesday-Blitz-March-12-2024"]
[Site "Chess.com"]
[Date "2024.03.12"]
[Round "9"]
[White "expii"]
[Black "MathiasWomacka"]
[Result "1-0"]
[WhiteElo "2199"]
[BlackElo "2521"]
[TimeControl "180+1"]
[EndTime "15:42:19 PDT"]
[Termination "expii won on time"]

1. e4 {[%clk 0:03:00.9]} 1... c5 {[%clk 0:03:00.3]} 2. Nf3 {[%clk 0:02:57.1]}
2... d6 {[%clk 0:03:00.8]} 3. d4 {[%clk 0:02:55.7]} 3... cxd4 {[%clk 0:03:01.7]}
4. Nxd4 {[%clk 0:02:56.2]} 4... Nf6 {[%clk 0:03:01.2]} 5. Nc3 {[%clk 0:02:56.3]}
5... a6 {[%clk 0:03:01]} 6. g3 {[%clk 0:02:54]} 6... e5 {[%clk 0:03:00.7]} 7.
Nde2 {[%clk 0:02:53.7]} 7... Nbd7 {[%clk 0:03:00.2]} 8. Bg2 {[%clk 0:02:52.2]}
8... b5 {[%clk 0:02:58.7]} 9. a3 {[%clk 0:02:51.1]} 9... Be7 {[%clk 0:02:58.2]}
10. O-O {[%clk 0:02:48.5]} 10... Bb7 {[%clk 0:02:57]} 11. Be3 {[%clk 0:02:44]}
11... O-O {[%clk 0:02:55.3]} 12. h3 {[%clk 0:02:38.4]} 12... Nb6 {[%clk
0:02:46.9]} 13. b3 {[%clk 0:02:30.6]} 13... Rc8 {[%clk 0:02:23.4]} 14. Qd2
{[%clk 0:02:27.1]} 14... Nbd7 {[%clk 0:01:53.9]} 15. g4 {[%clk 0:02:24.8]} 15...
Nc5 {[%clk 0:01:48.6]} 16. f3 {[%clk 0:02:20.3]} 16... d5 {[%clk 0:01:35.9]} 17.
exd5 {[%clk 0:02:14.8]} 17... Nxd5 {[%clk 0:01:35.4]} 18. Nxd5 {[%clk
0:02:13.6]} 18... Qxd5 {[%clk 0:01:33.5]} 19. Rad1 {[%clk 0:02:11.5]} 19... Qc6
{[%clk 0:01:17.2]} 20. Ng3 {[%clk 0:01:55.6]} 20... Ne6 {[%clk 0:01:10.4]} 21.
Nf5 {[%clk 0:01:39.2]} 21... Bc5 {[%clk 0:01:00.4]} 22. Kh1 {[%clk 0:01:28.7]}
22... Rfd8 {[%clk 0:00:23.9]} 23. Qf2 {[%clk 0:01:17.4]} 23... g6 {[%clk
0:00:16.6]} 24. Bxc5 {[%clk 0:01:13.6]} 24... Qxc5 {[%clk 0:00:14.1]} 25. Qxc5
{[%clk 0:01:11]} 25... Rxc5 {[%clk 0:00:11.5]} 26. Rxd8+ {[%clk 0:01:09.7]}
26... Nxd8 {[%clk 0:00:12.4]} 27. Ne3 {[%clk 0:01:04]} 27... Ne6 {[%clk
0:00:12.1]} 28. c4 {[%clk 0:01:02]} 28... Nf4 {[%clk 0:00:07.5]} 29. Rd1 {[%clk
0:00:49.9]} 29... bxc4 {[%clk 0:00:07]} 30. bxc4 {[%clk 0:00:50.8]} 30... Kg7
{[%clk 0:00:06.1]} 31. Kg1 {[%clk 0:00:38.5]} 31... Bc6 {[%clk 0:00:05.9]} 32.
Kf2 {[%clk 0:00:36.7]} 32... Ra5 {[%clk 0:00:06.4]} 33. Rd6 {[%clk 0:00:33.6]}
33... Be8 {[%clk 0:00:05.3]} 34. Nd5 {[%clk 0:00:31.3]} 34... Rxa3 {[%clk
0:00:04.1]} 35. Nxf4 {[%clk 0:00:30.2]} 35... exf4 {[%clk 0:00:02.9]} 36. c5
{[%clk 0:00:26.9]} 36... Ra2+ {[%clk 0:00:02.9]} 37. Kg1 {[%clk 0:00:27]} 37...
Rc2 {[%clk 0:00:03.3]} 38. Rxa6 {[%clk 0:00:26]} 38... Rxc5 {[%clk 0:00:01]} 39.
Ra8 {[%clk 0:00:24.9]} 1-0

[Event "Late-Titled-Tuesday-Blitz-March-12-2024"]
[Site "Chess.com"]
[Date "2024.03.12"]
[Round "9"]
[White "szachmistrz2500"]
[Black "1g60-1"]
[Result "0-1"]
[WhiteElo "2464"]
[BlackElo "2360"]
[TimeControl "180+1"]
[EndTime "15:42:20 PDT"]
[Termination "1g60-1 won by resignation"]

1. e4 {[%clk 0:03:00.9]} 1... e6 {[%clk 0:03:00.2]} 2. d4 {[%clk 0:03:00.6]}
2... d5 {[%clk 0:03:00.5]} 3. Nc3 {[%clk 0:03:01.1]} 3... Bb4 {[%clk 0:03:00.8]}
4. e5 {[%clk 0:02:57.1]} 4... Ne7 {[%clk 0:03:00.6]} 5. Bd2 {[%clk 0:02:47.9]}
5... b6 {[%clk 0:02:54.8]} 6. a3 {[%clk 0:02:43.6]} 6... Bxc3 {[%clk 0:02:53.3]}
7. Bxc3 {[%clk 0:02:44.5]} 7... Ba6 {[%clk 0:02:52.6]} 8. Bxa6 {[%clk
0:02:42.7]} 8... Nxa6 {[%clk 0:02:53.5]} 9. Qd3 {[%clk 0:02:42.7]} 9... Nb8
{[%clk 0:02:50.3]} 10. Ne2 {[%clk 0:02:40.9]} 10... Qd7 {[%clk 0:02:49.7]} 11.
Ng3 {[%clk 0:02:39.3]} 11... h5 {[%clk 0:02:44.8]} 12. h4 {[%clk 0:02:36.9]}
12... a6 {[%clk 0:02:43.1]} 13. Bd2 {[%clk 0:02:36.2]} 13... Qb5 {[%clk
0:02:41.4]} 14. Ke2 {[%clk 0:02:15.5]} 14... Nbc6 {[%clk 0:02:33.6]} 15. Be3
{[%clk 0:02:09.3]} 15... g6 {[%clk 0:02:10.2]} 16. a4 {[%clk 0:02:06.4]} 16...
Qxd3+ {[%clk 0:02:08.4]} 17. Kxd3 {[%clk 0:02:06.2]} 17... Kd7 {[%clk
0:01:55.7]} 18. c3 {[%clk 0:02:02.5]} 18... Na5 {[%clk 0:01:53.6]} 19. Nf1
{[%clk 0:01:58]} 19... Nf5 {[%clk 0:01:49.5]} 20. Bg5 {[%clk 0:01:55.9]} 20...
c5 {[%clk 0:01:47.6]} 21. dxc5 {[%clk 0:01:41.4]} 21... Nb3 {[%clk 0:01:37.7]}
22. Ra3 {[%clk 0:01:32.1]} 22... Nxc5+ {[%clk 0:01:36.6]} 23. Kc2 {[%clk
0:01:29]} 23... Rac8 {[%clk 0:01:28.5]} 24. Ne3 {[%clk 0:01:27.3]} 24... Ne4
{[%clk 0:01:22.3]} 25. Nxf5 {[%clk 0:01:25.4]} 25... gxf5 {[%clk 0:01:23.2]} 26.
f3 {[%clk 0:01:24.3]} 26... Nc5 {[%clk 0:01:15.5]} 27. Rd1 {[%clk 0:01:18.6]}
27... Rhg8 {[%clk 0:01:10.1]} 28. Rd4 {[%clk 0:01:16.4]} 28... Kc6 {[%clk
0:01:06.3]} 29. b4 {[%clk 0:01:09.7]} 29... Nd7 {[%clk 0:01:05.8]} 30. c4 {[%clk
0:01:06.9]} 30... Nxe5 {[%clk 0:00:57.3]} 31. cxd5+ {[%clk 0:01:06.4]} 31...
Kb7+ {[%clk 0:00:56.4]} 32. Rc3 {[%clk 0:01:03.9]} 32... Rxc3+ {[%clk
0:00:52.5]} 33. Kxc3 {[%clk 0:01:03.7]} 33... Rc8+ {[%clk 0:00:52.8]} 34. Kb3
{[%clk 0:01:04.2]} 34... b5 {[%clk 0:00:40.9]} 35. axb5 {[%clk 0:00:59.5]} 35...
axb5 {[%clk 0:00:40.6]} 36. dxe6 {[%clk 0:00:55.7]} 36... fxe6 {[%clk
0:00:41.5]} 37. Rd6 {[%clk 0:00:53.4]} 37... Rc6 {[%clk 0:00:39.5]} 38. Rd8
{[%clk 0:00:49.4]} 38... Rc4 {[%clk 0:00:24.7]} 39. Bf6 {[%clk 0:00:42.3]} 39...
Nc6 {[%clk 0:00:22.6]} 40. Rh8 {[%clk 0:00:30.9]} 40... Rxb4+ {[%clk 0:00:22.7]}
41. Kc3 {[%clk 0:00:31.2]} 41... Rc4+ {[%clk 0:00:22.6]} 42. Kb3 {[%clk
0:00:30]} 42... Rb4+ {[%clk 0:00:23]} 43. Kc3 {[%clk 0:00:30.2]} 43... Rc4+
{[%clk 0:00:21.7]} 44. Kd3 {[%clk 0:00:29.9]} 44... Nb4+ {[%clk 0:00:20.5]} 45.
Ke3 {[%clk 0:00:28]} 45... Nd5+ {[%clk 0:00:20.7]} 46. Kd3 {[%clk 0:00:26.6]}
46... Nxf6 {[%clk 0:00:21.6]} 0-1

[Event "Late-Titled-Tuesday-Blitz-March-12-2024"]
[Site "Chess.com"]
[Date "2024.03.12"]
[Round "9"]
[White "IraZyne"]
[Black "GoValya"]
[Result "1-0"]
[WhiteElo "2330"]
[BlackElo "2250"]
[TimeControl "180+1"]
[EndTime "15:42:20 PDT"]
[Termination "IraZyne won by resignation"]

1. e4 {[%clk 0:03:00.9]} 1... e6 {[%clk 0:02:48.1]} 2. d4 {[%clk 0:03:00.4]}
2... d5 {[%clk 0:02:41]} 3. Nc3 {[%clk 0:02:59.6]} 3... Bb4 {[%clk 0:02:39.2]}
4. a3 {[%clk 0:02:59.1]} 4... Bxc3+ {[%clk 0:02:34.2]} 5. bxc3 {[%clk
0:02:59.1]} 5... dxe4 {[%clk 0:02:33.3]} 6. Qg4 {[%clk 0:02:59]} 6... Kf8 {[%clk
0:02:32.3]} 7. Qxe4 {[%clk 0:02:57.5]} 7... Nf6 {[%clk 0:02:32.5]} 8. Qf3 {[%clk
0:02:51]} 8... Nc6 {[%clk 0:02:29.7]} 9. Be3 {[%clk 0:02:48.9]} 9... Qd5 {[%clk
0:02:29.1]} 10. Be2 {[%clk 0:02:45.2]} 10... Qxf3 {[%clk 0:02:20.5]} 11. Nxf3
{[%clk 0:02:44.8]} 11... Nd5 {[%clk 0:02:19]} 12. Bd2 {[%clk 0:02:43.2]} 12...
h6 {[%clk 0:02:13.9]} 13. c4 {[%clk 0:02:42.3]} 13... Nf6 {[%clk 0:02:11.8]} 14.
Bd3 {[%clk 0:02:38.5]} 14... Bd7 {[%clk 0:02:09.9]} 15. O-O {[%clk 0:02:37.8]}
15... g5 {[%clk 0:02:09.5]} 16. Rfe1 {[%clk 0:02:37.1]} 16... g4 {[%clk
0:02:08]} 17. Ne5 {[%clk 0:02:35.6]} 17... Nxd4 {[%clk 0:01:57]} 18. Bc3 {[%clk
0:02:33.3]} 18... c5 {[%clk 0:01:51.2]} 19. Rab1 {[%clk 0:02:25.2]} 19... b6
{[%clk 0:01:46]} 20. Kf1 {[%clk 0:02:21.1]} 20... Ba4 {[%clk 0:01:32.6]} 21. Rb2
{[%clk 0:02:16.4]} 21... Ke7 {[%clk 0:01:29.6]} 22. Re3 {[%clk 0:02:07.9]} 22...
Rad8 {[%clk 0:01:27.5]} 23. h3 {[%clk 0:02:03.5]} 23... h5 {[%clk 0:01:26.9]}
24. Kg1 {[%clk 0:01:54.8]} 24... Rhg8 {[%clk 0:01:25.5]} 25. Kh2 {[%clk
0:01:54.5]} 25... Nd7 {[%clk 0:01:03]} 26. Bxd4 {[%clk 0:01:44.2]} 26... cxd4
{[%clk 0:01:02.2]} 27. Re4 {[%clk 0:01:44.3]} 27... Nxe5 {[%clk 0:01:01.5]} 28.
Rxe5 {[%clk 0:01:44.6]} 28... gxh3 {[%clk 0:00:49.4]} 29. Kxh3 {[%clk
0:01:43.8]} 29... Bc6 {[%clk 0:00:48.5]} 30. g3 {[%clk 0:01:39.9]} 30... Bf3
{[%clk 0:00:45.2]} 31. c5 {[%clk 0:01:39]} 31... bxc5 {[%clk 0:00:24.8]} 32.
Rxc5 {[%clk 0:01:38.5]} 32... Rd7 {[%clk 0:00:24.5]} 33. Re5 {[%clk 0:01:35.8]}
33... h4 {[%clk 0:00:20.6]} 34. Be2 {[%clk 0:01:26.8]} 34... Bd5 {[%clk
0:00:17.5]} 35. gxh4 {[%clk 0:01:23.8]} 35... Rg2 {[%clk 0:00:17.1]} 36. Bb5
{[%clk 0:01:20]} 36... Rd8 {[%clk 0:00:13.7]} 37. Rxd5 {[%clk 0:01:19.5]} 37...
Rxf2 {[%clk 0:00:13]} 38. Rxd8 {[%clk 0:01:18.2]} 38... Kxd8 {[%clk 0:00:13.3]}
39. Bd3 {[%clk 0:01:17.5]} 39... Ke7 {[%clk 0:00:12.3]} 40. Rb7+ {[%clk
0:01:17.2]} 40... Kd6 {[%clk 0:00:12.6]} 41. Rxa7 {[%clk 0:01:16.3]} 41... f5
{[%clk 0:00:13]} 42. Kg3 {[%clk 0:01:16.3]} 42... Rd2 {[%clk 0:00:12.5]} 43.
Ra6+ {[%clk 0:01:14.7]} 43... Kd5 {[%clk 0:00:12.2]} 44. Ra5+ {[%clk 0:01:13.6]}
44... Kd6 {[%clk 0:00:12.6]} 45. a4 {[%clk 0:01:13.7]} 45... e5 {[%clk
0:00:12.5]} 46. Bxf5 {[%clk 0:01:12.8]} 46... Re2 {[%clk 0:00:11.2]} 47. h5
{[%clk 0:01:09.8]} 47... Re3+ {[%clk 0:00:11.3]} 48. Kf2 {[%clk 0:01:07.3]}
48... e4 {[%clk 0:00:11.7]} 49. h6 {[%clk 0:01:05.5]} 49... Rf3+ {[%clk
0:00:11.3]} 50. Kg2 {[%clk 0:01:02.5]} 50... Rc3 {[%clk 0:00:09.6]} 51. Bxe4
{[%clk 0:01:00.3]} 51... Rc7 {[%clk 0:00:07.7]} 52. h7 {[%clk 0:00:58.9]} 52...
Rg7+ {[%clk 0:00:07.6]} 53. Kf2 {[%clk 0:00:58.1]} 1-0

[Event "Late-Titled-Tuesday-Blitz-March-12-2024"]
[Site "Chess.com"]
[Date "2024.03.12"]
[Round "9"]
[White "karinachess1"]
[Black "Flaccidmoves"]
[Result "1-0"]
[WhiteElo "2604"]
[BlackElo "2422"]
[TimeControl "180+1"]
[EndTime "15:42:25 PDT"]
[Termination "karinachess1 won on time"]

1. d4 {[%clk 0:03:00.9]} 1... Nf6 {[%clk 0:02:55.1]} 2. c4 {[%clk 0:03:01.5]}
2... g6 {[%clk 0:02:55.4]} 3. Nc3 {[%clk 0:03:01.5]} 3... d5 {[%clk 0:02:49.5]}
4. h4 {[%clk 0:03:01.4]} 4... c5 {[%clk 0:02:43.9]} 5. cxd5 {[%clk 0:02:55.2]}
5... cxd4 {[%clk 0:02:39.7]} 6. Qxd4 {[%clk 0:02:52.1]} 6... Bg7 {[%clk
0:02:37.9]} 7. Nf3 {[%clk 0:02:45.7]} 7... O-O {[%clk 0:02:37.3]} 8. Qd1 {[%clk
0:02:41.3]} 8... Qa5 {[%clk 0:02:29.7]} 9. Bd2 {[%clk 0:02:10.2]} 9... Qb6
{[%clk 0:02:28.9]} 10. e4 {[%clk 0:01:51.4]} 10... Ng4 {[%clk 0:02:26.2]} 11.
Qe2 {[%clk 0:01:51]} 11... Qxb2 {[%clk 0:02:10.5]} 12. Rb1 {[%clk 0:01:51.1]}
12... Qc2 {[%clk 0:02:07.2]} 13. Qd3 {[%clk 0:01:43.6]} 13... Qxd3 {[%clk
0:02:03.7]} 14. Bxd3 {[%clk 0:01:44.5]} 14... e6 {[%clk 0:01:55.2]} 15. h5
{[%clk 0:01:37.2]} 15... exd5 {[%clk 0:01:51.1]} 16. Nxd5 {[%clk 0:01:34.9]}
16... Nc6 {[%clk 0:01:50.5]} 17. h6 {[%clk 0:01:19.7]} 17... Bh8 {[%clk
0:01:44.1]} 18. O-O {[%clk 0:01:19.7]} 18... Be6 {[%clk 0:01:26.3]} 19. Rxb7
{[%clk 0:01:13.7]} 19... Bxd5 {[%clk 0:01:20.3]} 20. exd5 {[%clk 0:01:13.9]}
20... Nce5 {[%clk 0:01:07.2]} 21. Nxe5 {[%clk 0:01:07.6]} 21... Bxe5 {[%clk
0:01:08.1]} 22. Be2 {[%clk 0:00:51.9]} 22... Nf6 {[%clk 0:01:05.5]} 23. Bf3
{[%clk 0:00:51.6]} 23... Rfd8 {[%clk 0:01:03.3]} 24. Ba5 {[%clk 0:00:51.6]}
24... Rd7 {[%clk 0:00:40.3]} 25. Rfb1 {[%clk 0:00:44.6]} 25... Rxb7 {[%clk
0:00:36.3]} 26. Rxb7 {[%clk 0:00:45.5]} 26... Ne8 {[%clk 0:00:22.2]} 27. g3
{[%clk 0:00:37.3]} 27... Nd6 {[%clk 0:00:22]} 28. Rd7 {[%clk 0:00:33.3]} 28...
Kf8 {[%clk 0:00:15.5]} 29. Bc7 {[%clk 0:00:29.7]} 29... Nc4 {[%clk 0:00:13.6]}
30. d6 {[%clk 0:00:13.8]} 30... Re8 {[%clk 0:00:12.6]} 31. Kg2 {[%clk
0:00:11.2]} 31... Nb6 {[%clk 0:00:07.6]} 32. Bxb6 {[%clk 0:00:09.9]} 32... axb6
{[%clk 0:00:08.5]} 33. Bd5 {[%clk 0:00:09.7]} 33... Rc8 {[%clk 0:00:03.5]} 34.
Rxf7+ {[%clk 0:00:09.5]} 1-0

[Event "Late-Titled-Tuesday-Blitz-March-12-2024"]
[Site "Chess.com"]
[Date "2024.03.12"]
[Round "9"]
[White "Quattroporte300"]
[Black "LornerAcosta"]
[Result "0-1"]
[WhiteElo "2490"]
[BlackElo "2621"]
[TimeControl "180+1"]
[EndTime "15:42:26 PDT"]
[Termination "LornerAcosta won by resignation"]

1. e4 {[%clk 0:03:00.9]} 1... c5 {[%clk 0:02:58.1]} 2. Nc3 {[%clk 0:03:01.5]}
2... Nc6 {[%clk 0:02:58.3]} 3. Bb5 {[%clk 0:03:00.7]} 3... Nd4 {[%clk
0:02:57.5]} 4. Bc4 {[%clk 0:03:01.1]} 4... e6 {[%clk 0:02:57.9]} 5. Nge2 {[%clk
0:03:01]} 5... Ne7 {[%clk 0:02:47.8]} 6. O-O {[%clk 0:02:58.5]} 6... Nec6 {[%clk
0:02:46.2]} 7. a4 {[%clk 0:02:56.4]} 7... Be7 {[%clk 0:02:45.7]} 8. d3 {[%clk
0:02:56.9]} 8... O-O {[%clk 0:02:44.2]} 9. f4 {[%clk 0:02:57.3]} 9... d6 {[%clk
0:02:43.9]} 10. Nxd4 {[%clk 0:02:49.6]} 10... Nxd4 {[%clk 0:02:42.7]} 11. Ne2
{[%clk 0:02:49.8]} 11... Nc6 {[%clk 0:02:33.1]} 12. Qe1 {[%clk 0:02:36.5]} 12...
Bf6 {[%clk 0:02:29]} 13. c3 {[%clk 0:02:35.5]} 13... Rb8 {[%clk 0:02:28.2]} 14.
Be3 {[%clk 0:02:14.3]} 14... a6 {[%clk 0:02:27.9]} 15. h3 {[%clk 0:02:04.3]}
15... d5 {[%clk 0:02:20.6]} 16. Bb3 {[%clk 0:01:51]} 16... d4 {[%clk 0:02:06.1]}
17. cxd4 {[%clk 0:01:37]} 17... Nxd4 {[%clk 0:02:04.3]} 18. Nxd4 {[%clk
0:01:35.7]} 18... Bxd4 {[%clk 0:02:02]} 19. Qf2 {[%clk 0:01:34.6]} 19... Bxe3
{[%clk 0:02:00.6]} 20. Qxe3 {[%clk 0:01:33.9]} 20... Qb6 {[%clk 0:01:53.3]} 21.
Ra3 {[%clk 0:01:18.8]} 21... Bd7 {[%clk 0:01:51.9]} 22. Rc1 {[%clk 0:01:19.1]}
22... Rbc8 {[%clk 0:01:50]} 23. a5 {[%clk 0:01:11.2]} 23... Qd6 {[%clk
0:01:44.6]} 24. Bc4 {[%clk 0:01:07]} 24... Qc7 {[%clk 0:01:37.4]} 25. Qd2 {[%clk
0:01:01.6]} 25... Rfd8 {[%clk 0:01:36.2]} 26. Qc3 {[%clk 0:00:59.2]} 26... Qxf4
{[%clk 0:01:34.6]} 27. Qe1 {[%clk 0:00:51.7]} 27... Bc6 {[%clk 0:01:22.1]} 28.
b3 {[%clk 0:00:50.6]} 28... Rd7 {[%clk 0:01:07.4]} 29. Ra2 {[%clk 0:00:51]}
29... h6 {[%clk 0:01:05.8]} 30. Rf2 {[%clk 0:00:50.9]} 30... Qg5 {[%clk
0:01:05.3]} 31. Kh2 {[%clk 0:00:48.4]} 31... Rcd8 {[%clk 0:01:03.4]} 32. Rcc2
{[%clk 0:00:42.6]} 32... Bb5 {[%clk 0:00:58.9]} 33. Bxb5 {[%clk 0:00:19.8]}
33... axb5 {[%clk 0:00:57.8]} 34. Qc3 {[%clk 0:00:20.4]} 34... Rxd3 {[%clk
0:00:53.2]} 35. Qxc5 {[%clk 0:00:20.2]} 35... Qg3+ {[%clk 0:00:51]} 36. Kg1
{[%clk 0:00:19.1]} 36... Rd1+ {[%clk 0:00:51.2]} 37. Rf1 {[%clk 0:00:18.9]}
37... Rxf1+ {[%clk 0:00:26.8]} 38. Kxf1 {[%clk 0:00:19.8]} 38... Rd1+ {[%clk
0:00:25.8]} 39. Ke2 {[%clk 0:00:20.4]} 39... Qe1+ {[%clk 0:00:26]} 40. Kf3
{[%clk 0:00:20.3]} 40... Rd3+ {[%clk 0:00:26.6]} 41. Kg4 {[%clk 0:00:11.5]}
41... Qg3+ {[%clk 0:00:22.1]} 42. Kh5 {[%clk 0:00:11.5]} 42... g6+ {[%clk
0:00:21.1]} 0-1